Cogmind - Beta 15 @@@ ROGUE MODE // 2025.08.04 @ 19:18:35 Player: Phosphophyllite Result: Self-destructed Performance ------------- Evolutions (1) 500 Regions Visited (2) 400 Robots Destroyed (24) 120 Value Destroyed (568) 568 Prototype IDs (0) 0 Alien Tech Used (0) 0 Bonus (0) 0 TOTAL SCORE: 1588 Bonus ------- None Cogmind --------- Core Integrity 84/400 Matter 263/300 Energy 265/265 System Corruption 0% Temperature Cool (8) Movement Walking (120) Location -9/Materials Parts ------- > --- POWER (1) -------- Improved Ion Engine > --- PROPULSION (3) --- Aluminum Leg Aluminum Leg Aluminum Leg > --- UTILITY (3) ------ Small Storage Unit Small Storage Unit > --- WEAPON (2) ------- Light Assault Rifle Heavy Assault Rifle > --- INVENTORY (8) ---- Light Nuclear Core Aluminum Leg Aluminum Leg Signal Interpreter Spread Laser Mini Grenade Launcher Peak State ------------ > --- POWER ------------ Improved Ion Engine > --- PROPULSION ------- Light Treads Light Treads > --- UTILITY ---------- Improved Heat Sink Small Storage Unit > --- WEAPON ----------- Beam Rifle Assault Rifle > --- INVENTORY -------- Aluminum Leg Aluminum Leg Signal Interpreter Spread Laser Spread Laser Light Assault Rifle Light Assault Rifle Mini Grenade Launcher [Rating: 12] Favorites ----------- Power Light Ion Engine Engine Light Ion Engine Propulsion Aluminum Leg Treads Light Treads Leg Aluminum Leg Utility Small Storage Unit Device Improved Heat Sink Storage Small Storage Unit Weapon Light Assault Rifle Energy Gun Spread Laser Ballistic Gun Light Assault Rifle Build | -11 -10 -9 ------- Run | Yrd Mat Mat Slots Evolved 2 | . . 2 Power . | . . . Propulsion 1 | . . 1 Utility 1 | . . 1 Weapon . | . . . Parts Attached 24 | 7 7 10 Power 4 | 1 1 2 Engine 4 | 1 1 2 Core . | . . . Reactor . | . . . Propulsion 9 | 2 4 3 Treads 4 | . 2 2 Leg 5 | 2 2 1 Wheel . | . . . Hover . | . . . Flight . | . . . Utility 4 | 2 1 1 Device 2 | 1 1 . Storage 2 | 1 . 1 Processor . | . . . Hackware . | . . . Protection . | . . . Artifact . | . . . Weapon 7 | 2 1 4 Energy Gun 3 | 1 1 1 Energy Cannon . | . . . Ballistic Gun 4 | 1 . 3 Ballistic Cannon . | . . . Launcher . | . . . Special Weapon . | . . . Impact Weapon . | . . . Slashing Weapon . | . . . Piercing Weapon . | . . . Special Melee Weapon . | . . . Unidentified Prototypes . | . . . Parts Lost 11 | . 1 10 Power 3 | . 1 2 Propulsion 4 | . . 4 Utility 2 | . . 2 Weapon 2 | . . 2 Highest Loss Streak 4 | . 1 4 To Critical Strikes . | . . . Average Backups 7 | 5 7 7 Power . | . . . Propulsion 2 | 3 2 1 Utility 1 | . 1 1 Weapon 3 | . 3 3 Tool/Special . | . . . Unused Backups 11 | . 5 6 Power 1 | . . 1 Propulsion 4 | . 2 2 Utility 3 | . 2 1 Weapon 3 | . 1 2 Tool/Special . | . . . Average Slot Usage (%) 83 | . 100 74 Engine 10 | . 14 9 Treads 11 | . 14 10 Leg 13 | . 14 13 Device 9 | . 14 7 Storage 12 | . 14 12 Energy Gun 11 | . 14 10 Ballistic Gun 12 | . 14 11 Peak Build Rating 12 | 8 10 12 Average Rating 9 | 5 9 10 On Entrance 6 | . 8 10 Naked Turns . | . . . Heaviest Build 23 | 11 13 23 Greatest Support 40 | 20 40 40 Greatest Overweight (x) 3 | 1 . 3 Average Overweight (x) . | . . . Largest Inventory Capacity 8 | 8 8 8 Average Capacity 7 | 7 8 8 Most Carried 8 | 8 8 8 Average Carried 7 | 5 7 7 Final Capacity 8 | 8 8 8 Final Carried 8 | 8 7 6 Class Distribution -------------------- 75% | Mutant 24% | Scavenger-Mutant Dominant Class ---------------- Mutant | -10/Materials Mutant | -9/Materials Resources | -11 -10 -9 ----------- Run | Yrd Mat Mat Matter Collected 512 | 242 122 148 Remotely . | . . . Salvage Created 645 | 56 251 338 Parts 42 | 11 20 11 Haulers Intercepted . | . . . Recyclers Shooed 2 | 1 . 1 Parts Field Recycled . | . . . Retrieved Matter . | . . . Parts Self-Destructed . | . . . Prevented . | . . . Kills | -11 -10 -9 ------- Run | Yrd Mat Mat Combat Hostiles Destroyed 20 | . 11 9 Guns 20 | . 11 9 Classes Destroyed 5 | 1 2 2 Worker 1 | . . 1 Tunneler 3 | 3 . . Swarmer 8 | . 5 3 Grunt 10 | . 6 4 Sentry 2 | . . 2 Best Kill Streak 6 | 2 6 4 Combat Bots Only 6 | . 6 4 Max Kills in Single Turn 1 | 1 1 1 Gunslinging . | . . . Exploded . | . . . Melee . | . . . Uniques/NPCs Destroyed . | . . . Combat | -11 -10 -9 -------- Run | Yrd Mat Mat Hostile Shots Fired 181 | . 53 128 Missed 45 | . 14 31 Hits 136 | . 39 97 Projectile 136 | . 39 97 Critical Strikes 6 | . . 6 Damage Taken 1836 | . 508 1328 Core 479 | . 163 316 Absorbed by Shields . | . . . Core Remaining (%) 67 | 100 34 . Volleys Fired 70 | 6 28 36 Largest 2 | 2 2 2 Hottest 85 | 60 85 85 Shots Fired 137 | 12 54 71 Gun 137 | 12 54 71 Cannon . | . . . Launcher . | . . . Special . | . . . Kinetic 73 | 6 28 39 Thermal 64 | 6 26 32 Explosive . | . . . Electromagnetic . | . . . Robot Hit Streak 19 | 1 12 19 Robot Miss Streak 6 | 3 6 5 Penetration Max . | . . . Secondary Targets 7 | . 2 5 Max Gunslinging Chain 1 | . 1 1 Shots Hit Robots 93 | 4 43 46 Core Hits 71 | 4 40 27 Critical Kills . | . . . Critical Parts Destroyed . | . . . Critical Strikes 2 | . . 2 Burn 2 | . . 2 Melee Attacks . | . . . Impact . | . . . Slashing . | . . . Piercing . | . . . Sneak Attacks . | . . . Combat Hostiles . | . . . Follow-up Attacks . | . . . Damage Inflicted 1187 | 48 504 635 Guns 1174 | 47 504 623 Cannons . | . . . Explosions . | . . . Melee . | . . . Ramming 13 | 1 . 12 Kinetic 486 | 16 141 329 Thermal 688 | 31 363 294 Explosive . | . . . Electromagnetic . | . . . Impact . | . . . Slashing . | . . . Piercing . | . . . Highest Corruption . | . . . Average Corruption . | . . . Corruption Purged . | . . . Corruption Blocked . | . . . Overload Shots . | . . . Overflow Damage . | . . . Projectiles . | . . . Explosions . | . . . Melee . | . . . Knockbacks . | . . . Impact . | . . . Kinetic . | . . . Secondary . | . . . Self-Inflicted Damage . | . . . Shots . | . . . Rammed 1 | . . 1 Targets Rammed 3 | 1 . 2 Kicked 2 | 1 . 1 Crushed . | . . . Highest Temperature 282 | 40 282 59 Average Temperature 93 | 17 131 20 Received Heat Transfer 735 | . 144 591 Siege Activations . | . . . Martial Activations . | . . . Shielding Activations . | . . . Robots Disrupted . | . . . Combat Hostiles . | . . . Robots Corrupted . | . . . Combat Hostiles . | . . . Parts Fried . | . . . Impact Corruptions . | . . . Robots Melted . | . . . Combat Hostiles . | . . . Parts Melted . | . . . Heat Transferred 1260 | 75 455 730 Parts Sabotaged . | . . . Parts Stolen . | . . . Parts Stripped . | . . . Power Chain Reactions . | . . . Alert | -11 -10 -9 ------- Run | Yrd Mat Mat Maximum Alert Level 1 | . 1 . Low Security (%) 98 | 100 93 100 Level 1 1 | . 6 . Level 2 . | . . . Level 3 . | . . . Level 4 . | . . . Level 5 . | . . . High Security . | . . . Max Security . | . . . Peak Influence 200 | 5 200 111 Initial 71 | . . 71 Average 53 | 1 114 40 Influence Increases 564 | 15 290 259 Destroy 0b10 Robot/C 400 | . 220 180 Destroy 0b10 Robot/NC 20 | 15 . 5 Destroy Leader 90 | . 40 50 Successful Hack 9 | . . 9 Select Force Hacks 30 | . 30 . Disable Machine 15 | . . 15 Influence Decreases 564 | 15 120 429 Entered New Map 99 | . . 99 Time Decay 314 | 15 110 189 Lost Part 100 | . 10 90 Purge Threat 51 | . . 51 Squads Dispatched 3 | . 2 1 Investigation 2 | . 1 1 Extermination . | . . . Reinforcement 1 | . 1 . Assault . | . . . Garrison . | . . . Intercept . | . . . Searches Triggered . | . . . Construction Impeded . | . . . Haulers Reinforced . | . . . Active Scanning Responses . | . . . Cargo Convoy Interrupts . | . . . Stealth | -11 -10 -9 --------- Run | Yrd Mat Mat Distress Signals 2 | . 1 1 Communications Jammed . | . . . Distress Signals . | . . . Times Spotted 30 | . 17 13 Peak Tracking Total 5 | . 5 4 Tactical Retreats . | . . . Traps | -11 -10 -9 ------- Run | Yrd Mat Mat Traps Triggered . | . . . Indirectly . | . . . Trap Hack Attempts . | . . . Triggered . | . . . Disarmed . | . . . Reprogrammed . | . . . Reused . | . . . Traps Extracted . | . . . Installed . | . . . Triggered . | . . . Machines | -11 -10 -9 ---------- Run | Yrd Mat Mat Machines Disabled 1 | . . 1 Max in Single Turn 1 | . . 1 Machines Repaired . | . . . Machines Dismantled . | . . . Machines Sabotaged . | . . . Overloaded Fab Kills . | . . . Hacking | -11 -10 -9 --------- Run | Yrd Mat Mat Machines Accessed 4 | . 1 3 Terminals 3 | . . 3 Fabricators . | . . . Repair Stations . | . . . Recycling Units 1 | . 1 . Scanalyzers . | . . . Garrison Access . | . . . Total Hacks 10 | . 2 8 Successful 6 | . 2 4 Failed 4 | . . 4 Catastrophic 3 | . . 3 Database Lockouts . | . . . Manual 8 | . 1 7 Terminals 8 | . . 8 Fabricators . | . . . Repair Stations . | . . . Recycling Units 2 | . 2 . Scanalyzers . | . . . Garrison Access . | . . . Terminal Hacks 2 | . . 2 Unreport Threat 1 | . . 1 Dispatch Records 1 | . . 1 Fabricator Hacks . | . . . Repair Station Hacks . | . . . Recycling Unit Hacks 1 | . 1 . Report Inventory 1 | . 1 . Scanalyzer . | . . . Garrison Access Hacks . | . . . Unauthorized Hacks 3 | . 1 2 Terminals 2 | . . 2 Botnet 2 | . . 2 Fabricators . | . . . Repair Stations . | . . . Recycling Units 1 | . 1 . Tunnel 1 | . 1 . Scanalyzers . | . . . Garrison Access . | . . . Data Cores Recovered . | . . . Used . | . . . Hacking Detections 3 | . . 3 Full Trace Events 1 | . . 1 Feedback Events . | . . . Feedback Blocked . | . . . Robot Schematics Acquired . | . . . Robots Built . | . . . Authchips . | . . . Time . | . . . Total Robot Build Rating . | . . . Part Schematics Acquired . | . . . Parts Built . | . . . Authchips . | . . . Time . | . . . Total Part Build Rating . | . . . Parts Repaired . | . . . Time . | . . . Parts Recycled . | . . . Recycled Matter . | . . . Retrieved Matter . | . . . Retrieved Components . | . . . Parts Scanalyzed . | . . . Part Schematics Acquired . | . . . Parts Damaged . | . . . Bothacking | -11 -10 -9 ------------ Run | Yrd Mat Mat Used RIF Installer . | . . . Robots Hacked . | . . . Non-combat . | . . . Combat . | . . . Robot Hacks Applied . | . . . Relay Couplers Released . | . . . Fabnet Peak Effective % . | . . . Robots Rewired . | . . . Allies Hacked . | . . . Hacks Repelled . | . . . Allies | -11 -10 -9 -------- Run | Yrd Mat Mat Total Allies . | . . . Largest Group . | . . . Highest-Rated Group . | . . . Highest-Rated Ally . | . . . Total Orders . | . . . Ally Attacks . | . . . Total Damage . | . . . Kills . | . . . Allies Corrupted . | . . . Allies Melted . | . . . Intel | -11 -10 -9 ------- Run | Yrd Mat Mat Active Infowar (turns) 206 | 18 156 32 Seismic 206 | 18 156 32 Robot Analysis Total . | . . . Derelict Logs Recovered . | . . . Drone Launches . | . . . Drone Recoveries . | . . . Exploration | -11 -10 -9 ------------- Run | Yrd Mat Mat Turns Passed 823 | 152 227 444 Spaces Moved 412 | 98 92 222 Core 17 | 5 . 12 Treads 138 | . 45 93 Legs 257 | 93 47 117 Wheels . | . . . Hover . | . . . Flight . | . . . Fastest Speed 50 | 50 120 120 Average Speed 135 | 118 139 141 Slowest Speed 200 | 120 160 200 Overloaded Moves . | . . . Propulsion Burnouts . | . . . Robots Hopped . | . . . Potential Cave-ins . | . . . Cave-ins Triggered . | . . . Exploration Rate (%) 17 | 6 22 23 Regions Visited 2 Branch Regions . Pre-discovered Areas 1 | . 1 . Known Exits Taken . | . . . Unknown Exits Taken 2 | 1 1 . Scrap Searched . | . . . Spaces Dug . | . . . Terrain Destroyed . | . . . Melee . | . . . Projectile . | . . . AOE . | . . . Terrain Rammed . | . . . Walls Destroyed . | . . . Machines Disabled . | . . . Actions | -11 -10 -9 --------- Run | Yrd Mat Mat Total 546 | 120 146 280 Wait 7 | . 7 . Move 410 | 97 91 222 Hop . | . . . Pick Up 19 | 9 5 5 Fast Attach 11 | 6 . 5 Attach 8 | 1 1 6 Detach . | . . . Swap 8 | . 6 2 Drop 10 | . 8 2 Fire 70 | 6 28 36 Melee . | . . . Ram . | . . . Kick 2 | 1 . 1 Crush 1 | . . 1 Escape Stasis . | . . . Rewire . | . . . Trap . | . . . Miscellaneous . | . . . Route ------- -11/Scrapyard -10/Materials -9/Materials History --------- Turn | Location | Event 7 | -11/Scrapyard | Discovered new exit (range 15) 153 | -11/Scrapyard | Entered Materials 296 | -10/Materials | Core integrity fell below 50% 330 | -10/Materials | Build established: Mutant 356 | -10/Materials | Discovered new exit (range 8) 380 | -10/Materials | Entered another Materials area 380 | -9/Materials | Evolved 2 slots: Propulsion x1, Utility x1 519 | -9/Materials | Lost 3 parts (1p2n) 610 | -9/Materials | Core integrity fell below 50% 651 | -9/Materials | Lost 4 parts (1p2n1u) 824 | -9/Materials | Self-destructed Last Messages --------------- 00653_ K-01 Serf collects debris. 00655_ Acquired Aluminum Leg. 00656_ K-01 Serf collects debris. 00657_ Acquired 40 matter. 00660_ K-01 Serf collects debris. 00673_ R-06 Scavenger collects Sml. Laser. 00680_ K-01 Serf collects debris. 00689_ R-06 Scavenger collects Aluminum Leg. 00690_ K-01 Serf cleans the Terminal. 00695_ K-01 Serf collects debris. 00720_ Assault Rifle destroyed. 00724_ G-34 Mercenary destroyed. 00727_ K-01 Serf collects debris. 00748_ Acquired 17 matter. 00767_ Kicked U-05 Engineer out of the way. 00775_ Acquired Sml. Storage Unit. 00795_ Critical hit (Burn: +37). 00796_ W-16 Scout sends out distress signal. 00811_ Beam Rifle destroyed. 00823_ K-01 Serf collects debris. Map ----- +----------------------------------------------------+ | ?????????????????????????????????????????????????? | | ?????????????????????????????????????????????????? | | ?????????????????????????????????????????????????? | | ?????????????????????????????????????????????????? | | ?????????????????????????????????????????????????? | | ?????????????????????????????????????????????????? | | ?????????????????????????????????????????????????? | | ?????????????????????????????????????????????????? | | ?????????????????????????????????????????????????? | | ?????????????????????????????????????????????????? | | ???????????????????+?????????????????????????????? | | ??????????????????# ?????????????????????????????? | | ?????????????????## ###??????????????????????????? | | ????????????????? #??????????????????????????? | | ?????????????????? ??????????????????????????? | | ?????????????????? #??????????????????????????? | | ??????????????????# ##?????????????????????????? | | ??????????????????# ## ????????????????????????? | | ??????????????????# ##"????????????????????????? | | ??????????????????# ##"????????????????????????? | | ??????????????????# ## ????????????????????????? | | ???###????????????#r ## ????????????????????????? | | ???# ########## ##Y####+###????????????????? | | ???# k a #????????????????? | | ?? Y +????????????????? | | ???# r @ #????????????????? | | ???? #######/#######;###### #????????????????? | | ?????????????# # #???????????????????? | | ?????????????# # #???????????????????? | | ?????????????# # #???????????????????? | | ?????????????# # |[ #???????????????????? | | ?????????????# # ! +???????????????????? | | ??????######## # #???????????????????? | | ??????# ## # #???????????????????? | | ??????# ## # ###?????????????????? | | ??????# + ########### ###???????????????? | | ??????# ## #???# # # #####???????????? | | ??????# ## #??## T #???????????? | | ??????## ### #??# #???????????? | | ???????# #?#######??# # ##??????????? | | ???????# #??????????# # #??????????? | | ???????# #??????????## # ##??????##??? | | ???????# #??????????# # * #??##### ###? | | ######## #??????????## # **%## #? | | # #????######## # ** ## """ """ #? | | """ # #????# """ # # [## "R """ #? | | """ + #????# """ ####+#####+##### """ """ #? | | """ # #????# """ + ^ # #? | | + #????# ### ^ ^^ # #? | | " " # #????# #?## """ + #? | +----------------------------------------------------+ Best States ------------- Heat Dissipation 42 Energy Generation 12 Energy Capacity 265 Matter Stores 300 Matter Capacity 300 Sight Range 16 Terrain Scan Density 10 Evasion (%) 55 Recoil Reduction 2 Item Schematics ----------------- None Robot Schematics ------------------ None Fabricated ------------ Nothing Repaired ---------- Nothing Alien Tech Used ----------------- None Achievements -------------- Brute Force Challenges ------------ None Game ------ Seed DirectedSalvageLeg Manual? 0 Play Time 00:14:12 Cumulative 49.5 hours Start 2025.08.04 @ 19:07:18 End 2025.08.04 @ 19:18:35 Sessions 1 Manual Loads 0 Difficulty Rogue Special Mode None Game No. 52 Rogue 48 Adventurer 4 Explorer 0 Win Type - Total 1 Types 1/0/0/0/0/0/0/0/0/0 Lore% 31 Gallery% 35 Achievement% 36 Wizard Run 0 Options --------- Layout 0 ASCII 0 Keyboard 1 Movement Numpad Keybinds 0 Fullscreen 2 Font 24/Smallcaps Map View 76x50 Zoom Use 0% Tactical HUD 1 Map Filters NONE Filters NONE Steam 1 RUN: d391fb76-02b1-441b-b3b6-aa8f3c3e3ddf